bitfinex-derivatives/quotes_SOLF0:USTF0_20250904
["timestamp","ask_amount","ask_price","bid_price","bid_amount"]
[1756945939118,1.55270656,211.01,210.94,1.55270656]
[1756945939318,4.2643,210.99,210.94,1.55270656]
[1756945939524,7.47,211.0,210.93,1.55270656]
[1756945940224,7.47,211.0,210.92,6.81762478]
[1756945941021,4.2645,210.98,210.92,6.81762478]
[1756945941817,4.2645,210.98,210.92,5.26491822]
[1756945942024,7.47,210.98,210.9,1.55270656]
[1756945942421,4.2649,210.96,210.9,1.55270656]
[1756945943825,4.2643,210.99,210.94,1.55270656]
[1756945944127,7.47,210.98,210.94,1.55270656]
[1756945944328,7.47,210.98,210.92,1.55270656]
[1756945945129,11.7345,210.98,210.92,1.55270656]
[1756945945427,7.47,210.98,210.92,1.55270656]
[1756945945930,11.7346,210.97,210.91,5.99270656]
[1756945946623,7.47,210.97,210.91,5.99270656]
[1756945946825,7.47,210.97,210.93,1.55270656]
[1756945947224,4.2641,210.99,210.93,1.55270656]
[1756945947430,7.47,210.97,210.93,1.55270656]
[1756945948025,14.2,211.12,210.95,1.55270656]
[1756945948026,1.55270656,211.06,210.95,1.55270656]
[1756945948226,11.22373928,211.05,210.98,1.55270656]
[1756945948426,3.75373928,211.04,210.98,1.55270656]
[1756945948726,7.47,211.05,210.98,1.55270656]
[1756945948930,3.75306533,211.04,210.98,1.55270656]
[1756945949229,7.47,211.05,210.98,1.55270656]
[1756945949431,4.2632,211.04,210.98,1.55270656]
[1756945950033,7.47,211.05,210.98,1.55270656]
[1756945950337,4.2627,211.06,211.01,1.55270656]
[1756945950632,7.47,211.05,211.01,1.55270656]
[1756945951034,7.47,211.05,210.89,0.82519207]
[1756945951035,7.47,211.07,211.03,1.55270656]
[1756945951530,4.2623,211.08,211.03,1.55270656]
[1756945951735,4.2623,211.08,211.0,4.44]
[1756945951934,11.7323,211.08,211.02,1.55270656]
[1756945952324,4.2626,211.07,211.02,1.55270656]
[1756945952526,7.47,211.08,211.01,1.55270656]
[1756945953837,4.263,211.05,211.01,1.55270656]
[1756945954028,7.47,211.04,211.01,1.55270656]
[1756945955937,4.263,211.05,211.01,1.55270656]
[1756945956132,11.7332,211.03,211.01,1.55270656]
[1756945956333,7.47,211.02,211.01,1.55270656]
[1756945956532,11.7336,211.02,210.96,4.44]
[1756945956727,1.55270656,211.05,210.98,1.55270656]
[1756945956927,7.47,211.03,210.98,1.55270656]
[1756945957137,3.75626684,211.04,210.96,1.55270656]
[1756945957138,7.47,211.04,210.96,1.55270656]
[1756945957338,7.47,211.02,210.96,1.55270656]
[1756945958033,9.02270656,211.06,210.98,1.55270656]
[1756945958337,7.47,211.04,210.98,1.55270656]
[1756945958836,4.2635,211.02,210.98,1.55270656]
[1756945959034,7.47,211.01,210.98,1.55270656]
[1756945959235,4.2635,211.02,210.98,1.55270656]
[1756945959436,7.47,211.01,210.98,1.55270656]
[1756945959836,4.2635,211.02,210.98,1.55270656]
[1756945960232,7.47,211.01,210.98,1.55270656]
[1756945960534,4.2638,211.01,210.98,1.55270656]
[1756945960741,7.47,211.0,210.98,1.55270656]
[1756945969745,4.2638,211.01,210.98,1.55270656]
[1756945969941,7.2,211.0,210.98,1.55270656]
[1756945970737,11.4638,211.01,210.97,1.55270656]
[1756945971240,7.2,211.0,210.97,1.55270656]
[1756945971444,4.2638,211.01,210.97,1.55270656]
[1756945971648,7.2,211.0,210.97,1.55270656]
[1756945972245,11.4632,211.04,211.0,4.42]
[1756945972446,3.76605503,211.03,211.02,1.55270656]
[1756945972648,11.4632,211.04,211.02,1.55270656]
[1756945973748,11.4626,211.06,211.02,5.97270656]
[1756945973943,7.2,211.05,211.04,1.55270656]
[1756945974750,8.75270656,211.14,211.04,1.55270656]
[1756945974947,7.2,211.12,211.06,1.55270656]
[1756945975144,7.2,211.1,211.06,1.55270656]
[1756945975450,4.2622,211.09,211.06,1.55270656]
[1756945975750,7.2,211.08,211.06,1.55270656]
[1756945975949,4.2622,211.09,211.06,1.55270656]
[1756945976247,7.2,211.08,211.06,1.55270656]
[1756945976850,4.2622,211.09,211.06,1.55270656]
[1756945977144,7.2,211.08,211.06,1.55270656]
[1756945977345,4.2624,211.08,211.02,4.42]
[1756945977546,7.2,211.11,211.04,1.55270656]
[1756945977748,3.51042516,211.1,211.04,1.55270656]
[1756945978048,3.51042516,211.09,211.04,1.55270656]
[1756945978252,7.2,211.1,211.04,1.55270656]
[1756945978447,3.51107251,211.09,211.04,1.55270656]
[1756945978647,1.55270656,211.12,211.04,1.55270656]
[1756945978848,4.2626,211.07,211.04,1.55270656]
[1756945979651,7.2,211.06,211.04,1.55270656]
[1756945979953,7.2,211.09,211.02,1.55270656]
[1756945980154,3.51118757,211.08,211.02,1.55270656]
[1756945980355,7.2,211.09,211.02,1.55270656]
[1756945980545,3.5110356,211.08,211.02,1.55270656]
[1756945980853,8.75270656,211.1,211.02,1.55270656]
[1756945981054,7.2,211.08,211.02,1.55270656]
[1756945981854,4.2626,211.07,211.02,1.55270656]
[1756945982652,7.2,211.06,211.02,1.55270656]
[1756945982852,4.2626,211.07,211.02,1.55270656]
[1756945983959,11.462,211.1,211.04,5.97270656]
[1756945984261,7.2,211.1,210.98,4.42]
[1756945984562,4.2619,211.1,211.05,1.55270656]
[1756945984755,7.2,211.09,211.07,1.55270656]
[1756945985457,7.2,211.11,211.07,5.97270656]
[1756945985662,7.2,211.11,211.09,1.55270656]
[1756945986053,4.2614,211.12,211.09,1.55270656]
[1756945986450,7.2,211.11,211.09,1.55270656]
[1756945987269,7.2,211.12,211.09,1.55270656]
[1756945987664,7.2,211.12,211.09,5.97270656]
[1756945988867,7.2,211.12,211.09,1.55270656]
[1756945989268,0.0307213,211.13,211.11,4.42]
[1756945989464,0.0307213,211.13,211.11,1.55270656]
[1756945989660,7.2,211.12,211.11,1.55270656]
[1756945990570,7.2,211.12,211.1,1.55270656]
[1756945991369,7.2,211.12,211.08,1.55270656]
[1756945991766,0.0307213,211.13,211.08,1.55270656]
[1756945992268,0.0307213,211.13,211.12,1.55270656]
[1756945992766,0.0307213,211.13,211.12,5.99270656]
[1756945998172,7.29,211.18,211.12,5.99270656]
[1756945998375,7.29,211.18,211.12,4.44]
[1756945998572,7.29,211.18,211.16,1.55270656]
[1756945999472,7.29,211.18,211.15,0.03319426]
[1756945999868,4.2597,211.21,211.15,0.03319426]
[1756946000069,4.2597,211.21,211.16,6.86114864]
[1756946000264,4.2597,211.21,211.16,2.42114864]
[1756946000867,7.29,211.2,211.16,2.42114864]
[1756946001072,4.2597,211.21,211.16,2.42114864]
[1756946001272,7.32125176,211.2,211.16,2.42114864]
[1756946001572,7.32125176,211.2,211.17,4.44]
[1756946002375,7.32125176,211.2,211.16,2.42114864]
[1756946002376,0.03125176,211.2,211.16,2.42114864]
[1756946002674,0.03125176,211.2,211.17,4.44]
[1756946003076,0.03125176,211.2,211.16,2.42114864]
[1756946003273,0.03125176,211.2,211.15,0.03319426]
[1756946003971,7.29,211.19,211.16,4.44]
[1756946004172,0.03125176,211.2,211.15,0.03319426]
[1756946004374,7.29,211.19,211.15,0.03319426]
[1756946004570,7.29,211.18,211.15,0.03319426]
[1756946005173,4.2601,211.19,211.15,0.03319426]
[1756946005771,7.29,211.18,211.15,0.03319426]
[1756946005975,4.2601,211.19,211.15,0.03319426]
[1756946007275,4.2604,211.18,211.15,0.03319426]
[1756946007481,7.29,211.19,211.15,0.03319426]
[1756946008572,4.2606,211.17,211.15,0.03319426]
[1756946008979,11.5506,211.17,211.15,0.03319426]
[1756946009376,7.29,211.16,211.15,0.03319426]
[1756946010676,4.29125176,211.2,211.15,0.03319426]
[1756946010881,7.29,211.19,211.15,4.49319426]
[1756946011277,4.29125176,211.2,211.15,4.49319426]
[1756946011480,7.29,211.19,211.15,4.49319426]
[1756946011680,4.29125176,211.2,211.15,4.49319426]
[1756946012074,7.29,211.19,211.15,0.03319426]
[1756946012275,4.29125176,211.2,211.16,4.46]
[1756946012471,0.03125176,211.2,211.16,4.46]
[1756946012677,0.03125176,211.2,211.15,0.03319426]
[1756946012874,0.03125176,211.2,211.16,4.46]
[1756946013074,0.03125176,211.2,211.18,4.46]
[1756946013278,0.03125176,211.2,211.17,2.42114864]
[1756946013584,0.03125176,211.2,211.17,6.88114864]
[1756946014375,0.03125176,211.2,211.18,4.46]
[1756946014984,0.03125176,211.2,211.17,2.42114864]
[1756946015186,0.03125176,211.2,211.17,6.88114864]
[1756946015486,0.03125176,211.2,211.15,0.03319426]
[1756946015487,7.29,211.19,211.15,0.03319426]
[1756946015878,7.29,211.19,211.15,4.49319426]
[1756946018484,7.29,211.19,211.15,6.9143429]
[1756946020182,7.29,211.19,211.15,2.4543429]
[1756946020384,0.03125176,211.2,211.15,2.4543429]
[1756946020587,7.29,211.19,211.15,2.4543429]
[1756946021084,0.03125176,211.2,211.15,2.4543429]
[1756946021283,7.29,211.19,211.15,6.9143429]
[1756946021484,7.29,211.19,211.16,4.46]
[1756946025290,0.03125176,211.2,211.15,2.4543429]
[1756946025491,0.03125176,211.2,211.19,4.43]
[1756946031492,0.03125176,211.2,211.18,6.85114864]
[1756946033596,0.03125176,211.2,211.19,4.43]
[1756946036194,117.91008371,211.26,211.19,4.43]
[1756946036395,7.53,211.28,211.22,6.85114864]
[1756946036590,11.15856443,211.27,211.23,4.43]
[1756946036796,7.53,211.33,211.2,8.37396904]
[1756946036994,31.6,211.34,211.2,8.37396904]
[1756946036995,7.53,211.31,211.21,2.42114864]
[1756946037294,4.2588,211.26,211.2,4.43]
[1756946037495,11.15840803,211.25,211.24,0.03266142]
[1756946040597,7.53,211.25,211.24,0.03266142]
[1756946040797,11.15989408,211.25,211.24,0.03266142]
[1756946043498,3.62989408,211.25,211.24,4.46266142]
[1756946043696,7.53,211.28,211.24,4.46266142]
[1756946044202,4.2584,211.28,211.24,0.03266142]
[1756946044394,7.53,211.32,211.24,0.03266142]
[1756946044802,4.2583,211.28,211.23,2.42114864]
[1756946044996,11.7883,211.28,211.26,0.03378773]
[1756946045198,4.2577,211.31,211.26,2.45493637]
[1756946045402,11.7877,211.31,211.27,4.43]
[1756946045702,11.7877,211.31,211.27,4.465012]
[1756946045895,4.2577,211.31,211.27,4.465012]
[1756946046099,7.53,211.29,211.27,0.035012]
[1756946052507,4.258,211.3,211.27,4.475012]
[1756946052700,12.108,211.3,211.27,4.475012]
[1756946052906,12.108,211.3,211.27,0.035012]
[1756946053101,7.85,211.29,211.27,0.035012]
[1756946053703,4.258,211.3,211.27,0.035012]
[1756946053902,4.2582,211.29,211.27,0.035012]
[1756946054102,7.85,211.28,211.27,0.035012]
[1756946059607,7.85,211.28,211.22,1.54836285]
[1756946060609,7.85,211.31,211.24,1.54836285]
[1756946061006,4.2584,211.28,211.24,1.54836285]
[1756946061213,4.2584,211.28,211.25,0.03208065]
[1756946061411,9.39836285,211.31,211.25,0.03208065]
[1756946061710,7.85,211.26,211.25,0.03208065]
[1756946062711,7.85,211.28,211.25,1.5804435]
[1756946062906,0.03104338,211.28,211.27,6.01836285]
[1756946065213,4.2568,211.35,211.27,6.49836285]
[1756946065414,12.1068,211.35,211.33,1.54836285]
[1756946065805,7.85,211.34,211.33,1.54836285]
[1756946068916,7.85,211.32,211.31,0.03587456]
[1756946070515,7.85,211.32,211.31,1.58423741]
[1756946071821,7.85,211.32,211.31,0.03587456]
[1756946085826,7.31,211.34,211.26,1.54836285]
[1756946086332,7.31,211.34,211.25,4.52]
[1756946086534,7.31,211.34,211.29,1.54836285]
[1756946086924,7.31,211.34,211.29,1.58213824]
[1756946087630,7.31,211.35,211.29,1.58213824]
[1756946087834,4.2578,211.31,211.29,1.58213824]
[1756946088037,7.31,211.3,211.29,1.58213824]
[1756946088335,7.31,211.3,211.29,0.03377539]
[1756946089130,11.5672,211.33,211.29,0.03377539]
[1756946089431,7.31,211.4,211.32,1.54836285]
[1756946089735,4.2574,211.33,211.31,1.54836285]
[1756946089936,7.31,211.32,211.31,1.54836285]
[1756946091333,11.5676,211.31,211.3,0.02989087]
[1756946092035,7.31,211.33,211.3,0.02989087]
[1756946092336,7.31,211.33,211.32,1.54836285]
[1756946092531,4.2572,211.34,211.32,1.54836285]
[1756946093237,11.5667,211.36,211.32,1.54836285]
[1756946093432,7.31,211.35,211.34,1.54836285]
[1756946093938,4.257,211.34,211.3,0.02989087]
[1756946094133,4.257,211.34,211.33,1.54836285]
[1756946096831,11.567,211.34,211.33,1.54836285]
[1756946097233,11.567,211.34,211.32,1.54836285]
[1756946097234,7.31,211.33,211.32,1.54836285]
[1756946100237,7.31,211.33,211.3,0.02989087]
[1756946100442,7.31,211.31,211.3,0.02989087]
[1756946100737,7.31,211.39,211.3,0.02989087]
[1756946100935,7.31,211.39,211.33,1.54836285]
[1756946101843,7.31,211.4,211.35,1.54836285]
[1756946102545,48.0,211.41,211.35,1.5835817]
[1756946102947,7.31,211.36,211.35,1.5835817]
[1756946103149,7.31,211.36,211.35,0.03521885]
[1756946103345,11.5665,211.37,211.35,1.5835817]
[1756946103648,7.31,211.36,211.35,0.03521885]
[1756946105249,7.31,211.36,211.29,1.54836285]
[1756946106347,5.32114229,211.41,211.29,1.54836285]
[1756946106348,11.567,211.34,211.33,1.54836285]
[1756946106848,7.31,211.38,211.31,1.54836285]
[1756946107448,4.2576,211.32,211.27,3.94549745]
[1756946107652,4.2576,211.32,211.21,7.91098448]
[1756946107653,7.31,211.36,211.28,1.54836285]
[1756946109956,7.31,211.3,211.28,1.54836285]
[1756946110548,11.5683,211.28,211.26,3.94549745]
[1756946110753,1.54836285,211.33,211.24,5.4938603]
[1756946110954,7.31,211.32,211.24,1.54836285]
[1756946111554,7.31,211.32,211.22,3.94549745]
[1756946111555,1.54836285,211.31,211.22,3.94549745]
[1756946111753,7.31,211.3,211.22,1.54836285]
[1756946112053,4.2592,211.24,211.21,3.94549745]
[1756946112248,12.1392,211.24,211.22,1.54836285]
[1756946112650,4.2586,211.27,211.22,1.54836285]
[1756946112858,4.2586,211.27,211.25,1.54836285]
[1756946113057,7.88,211.26,211.21,8.50549745]
[1756946113260,1.54836285,211.31,211.24,1.54836285]
[1756946113458,12.1389,211.25,211.24,1.54836285]
[1756946114758,4.258,211.29,211.24,1.54836285]
[1756946114960,4.258,211.29,211.28,1.54836285]
[1756946115758,4.2577,211.31,211.28,6.10836285]
[1756946115958,7.88,211.34,211.28,1.54836285]
[1756946117059,12.138,211.3,211.28,1.54836285]
[1756946121559,4.2583,211.28,211.26,6.97847937]
[1756946122063,7.88,211.27,211.26,2.41847937]
[1756946122462,7.88,211.3,211.26,6.97847937]
[1756946122862,120.64418709,211.35,211.26,2.41847937]
[1756946123060,4.2575,211.32,211.28,4.56]
[1756946123258,12.1375,211.32,211.28,4.56]
[1756946123452,12.1375,211.32,211.29,6.97847937]
[1756946123658,4.2575,211.32,211.3,2.41847937]
[1756946123858,4.2575,211.32,211.3,6.97847937]
[1756946125664,4.2575,211.32,211.3,2.41847937]
[1756946126064,12.1375,211.32,211.3,2.41847937]
[1756946126764,7.88,211.31,211.3,2.41847937]
[1756946127465,7.88,211.34,211.27,2.41847937]
[1756946128360,120.64418709,211.35,211.25,3.94549745]
[1756946128559,124.86,211.34,211.24,6.36397682]
[1756946129266,12.1384,211.28,211.24,10.92397682]
[1756946130269,4.2586,211.27,211.24,10.92397682]
[1756946130457,7.88,211.26,211.24,2.41847937]
[1756946131869,12.1388,211.26,211.24,2.41847937]
[1756946132063,7.88,211.25,211.24,2.41847937]
[1756946132265,0.03419167,211.28,211.23,0.0364962]
[1756946132463,7.88,211.24,211.23,0.0364962]
[1756946133460,4.259,211.25,211.23,0.0364962]
[1756946133669,4.2585,211.27,211.24,4.56]
[1756946133966,4.2585,211.27,211.26,2.41847937]
[1756946134167,0.03419167,211.28,211.26,2.41847937]
[1756946134766,7.88,211.27,211.24,6.97847937]
[1756946135669,12.1386,211.26,211.24,2.41847937]
[1756946135867,7.88,211.25,211.24,2.41847937]
[1756946136063,7.88,211.25,211.23,0.0364962]
[1756946136564,12.139,211.25,211.23,0.0364962]
[1756946136971,7.88,211.24,211.23,0.0364962]
[1756946137964,4.259,211.25,211.23,0.0364962]
[1756946138170,12.139,211.25,211.23,0.0364962]
[1756946138864,7.88,211.24,211.23,0.0364962]
[1756946142872,7.63,211.27,211.23,2.45497557]
[1756946143177,7.63,211.27,211.26,2.41847937]
[1756946143778,0.03419167,211.28,211.26,2.41847937]
[1756946144185,7.66419167,211.28,211.26,2.41847937]
[1756946144576,7.66419167,211.28,211.24,4.56]
[1756946144777,0.03419167,211.28,211.26,2.41847937]
[1756946145079,7.63,211.27,211.26,2.41847937]
[1756946145673,0.03419167,211.28,211.23,0.0364962]
[1756946145881,7.63,211.27,211.23,0.0364962]
[1756946146282,7.63,211.24,211.23,0.0364962]
[1756946154587,0.03419167,211.28,211.23,0.5164962]
[1756946154776,7.63,211.41,211.28,4.56]
[1756946154980,3.52473768,211.4,211.36,2.41847937]
[1756946155181,3.52473768,211.39,211.36,2.41847937]
[1756946155379,7.63,211.37,211.36,2.41847937]
[1756946155576,11.15473768,211.37,211.36,2.41847937]
[1756946156082,15.41113768,211.37,211.36,2.41847937]
[1756946156385,11.63473768,211.37,211.34,0.03285219]
[1756946156584,3.5225641,211.36,211.34,0.03285219]
[1756946156883,7.63,211.41,211.34,0.03285219]
[1756946157078,7.63,211.39,211.34,0.03285219]
[1756946157280,7.63,211.37,211.34,0.03285219]
[1756946157581,3.52197913,211.36,211.34,0.03285219]
[1756946157776,7.63,211.35,211.34,0.03285219]
[1756946157982,11.8868,211.35,211.34,0.03285219]
[1756946158183,7.63,211.35,211.3,2.41847937]
[1756946158385,3.52190192,211.34,211.3,2.41847937]
[1756946158583,7.63,211.36,211.3,2.41847937]
[1756946158789,7.63,211.34,211.3,2.41847937]
[1756946159684,7.63,211.31,211.27,2.41847937]
[1756946159880,7.63,211.34,211.26,2.41847937]
[1756946160082,3.52213567,211.33,211.26,2.41847937]
[1756946160283,2.41847937,211.4,211.26,2.41847937]
[1756946160284,7.63,211.32,211.26,2.41847937]
[1756946160788,7.63,211.32,211.29,2.41847937]
[1756946160987,7.63,211.36,211.29,2.41847937]
[1756946161290,7.63,211.39,211.33,2.41847937]
[1756946161489,7.63,211.37,211.33,2.41847937]
[1756946161690,3.5209472,211.36,211.33,2.41847937]
[1756946161890,7.63,211.37,211.33,2.41847937]
[1756946162092,7.63,211.41,211.33,2.41847937]
[1756946162292,7.63,211.39,211.33,2.41847937]
[1756946162491,7.63,211.37,211.33,2.41847937]
[1756946162788,3.52059499,211.36,211.33,2.41847937]
[1756946162994,7.63,211.38,211.33,2.41847937]
[1756946163193,3.52056887,211.37,211.33,2.41847937]
[1756946163494,3.52056887,211.37,211.27,8.54410031]
[1756946163495,7.63,211.33,211.32,2.41847937]
[1756946164790,11.8865,211.37,211.32,7.00847937]
[1756946164994,11.8865,211.37,211.35,2.41847937]
[1756946165196,318.06,211.42,211.35,2.41847937]
[1756946165394,11.14894198,211.41,211.35,2.41847937]
[1756946165693,7.63,211.39,211.35,2.41847937]
[1756946165894,318.06,211.42,211.36,2.41847937]
[1756946166089,7.63,211.4,211.36,2.41847937]
[1756946166395,7.63,211.39,211.36,2.41847937]
[1756946168986,0.03279542,211.4,211.36,7.00847937]
[1756946169186,7.66279542,211.4,211.36,7.00847937]
[1756946169588,7.66279542,211.4,211.36,2.41847937]
[1756946169792,7.66279542,211.4,211.37,4.59]
[1756946170194,0.03279542,211.4,211.37,4.59]
[1756946170796,4.2547,211.46,211.39,7.00847937]
[1756946171098,7.63,211.45,211.42,2.41847937]
[1756946172190,4.2542,211.48,211.42,2.41847937]
[1756946175696,4.2546,211.47,211.42,2.41847937]
[1756946175898,7.18,211.51,211.42,2.41847937]
[1756946176200,7.18,211.49,211.42,2.41847937]
[1756946176391,116.9,211.52,211.44,0.03343073]
[1756946176592,10.68204965,211.51,211.44,0.03343073]
[1756946176796,3.50215841,211.5,211.44,0.03343073]
[1756946176999,11.4348,211.46,211.44,0.03343073]
[1756946178702,7.18,211.45,211.44,0.03343073]
[1756946181201,4.256,211.4,211.37,2.41847937]
[1756946181397,7.18,211.39,211.37,2.41847937]
[1756946181601,4.256,211.4,211.37,2.41847937]
[1756946182007,4.256,211.4,211.36,2.41847937]
[1756946182208,11.436,211.4,211.36,7.02847937]
[1756946182710,11.4721124,211.4,211.36,7.02847937]
[1756946183414,11.4721124,211.4,211.39,1.54625739]
[1756946187216,0.0361124,211.4,211.39,6.15625739]
[1756946187416,0.0361124,211.4,211.39,1.54625739]
[1756946188117,7.2161124,211.4,211.39,1.54625739]
[1756946189212,4.2921124,211.4,211.37,0.03033881]
[1756946189416,7.18,211.39,211.38,1.54625739]
[1756946190516,4.2562,211.38,211.37,0.03033881]
[1756946190714,11.4362,211.38,211.37,0.03033881]
[1756946193516,11.4719124,211.4,211.37,0.03033881]
[1756946193720,11.4719124,211.4,211.38,1.54625739]
[1756946193921,11.4719124,211.4,211.37,0.03033881]
[1756946194120,7.18,211.39,211.38,1.54625739]
[1756946198117,4.2562,211.38,211.37,0.03033881]
[1756946198321,11.4362,211.38,211.37,0.03033881]
[1756946200325,4.2919124,211.4,211.37,4.64033881]
[1756946200525,11.4719124,211.4,211.39,1.54625739]
[1756946203028,11.4461,211.39,211.38,1.54625739]
[1756946206126,7.19,211.38,211.37,0.03033881]
[1756946206325,7.19,211.38,211.27,8.55207198]
[1756946206722,7.19,211.36,211.28,1.54625739]
[1756946207429,7.19,211.36,211.25,4.62]
[1756946207728,0.03137994,211.34,211.29,1.54625739]
[1756946207927,4.2578,211.3,211.29,1.54625739]
[1756946208528,11.4482,211.29,211.28,1.54625739]
[1756946210529,0.03130792,211.31,211.28,1.54625739]
[1756946210832,0.03130792,211.31,211.3,1.54625739]
[1756946213931,7.22130792,211.31,211.3,1.54625739]
[1756946216324,0.03130792,211.31,211.3,1.54625739]
[1756946220928,0.03130792,211.31,211.27,4.62]
[1756946220929,0.03130792,211.31,211.27,1.54625739]
[1756946221127,7.19,211.3,211.27,1.54625739]
[1756946221829,4.2584,211.28,211.27,1.54625739]
[1756946224630,1.57756531,211.31,211.22,3.93207198]
[1756946224936,7.19,211.3,211.23,1.54625739]
[1756946225133,4.2591,211.24,211.23,1.54625739]
[1756946227434,11.4491,211.24,211.23,1.54625739]
[1756946227727,4.2591,211.24,211.23,1.54625739]
[1756946227932,4.2586,211.27,211.24,4.62]
[1756946228133,4.2586,211.27,211.26,6.16625739]
[1756946228744,4.2586,211.27,211.26,1.54625739]
[1756946229043,11.4486,211.27,211.26,1.54625739]
[1756946231436,4.29327229,211.29,211.26,6.16625739]
[1756946231641,4.29327229,211.29,211.26,4.62]
[1756946231842,4.29327229,211.29,211.28,1.54625739]
[1756946232539,4.29327229,211.29,211.28,6.15625739]
[1756946232540,0.03517229,211.29,211.28,6.15625739]
[1756946232744,0.03517229,211.29,211.28,4.61]
[1756946232939,0.03517229,211.29,211.28,6.15625739]
[1756946233340,7.24,211.35,211.28,6.15625739]
[1756946233640,7.24,211.39,211.33,1.54625739]
[1756946233940,3.49656968,211.38,211.33,1.54625739]
[1756946234141,3.49656968,211.37,211.33,1.54625739]
[1756946234340,3.49656968,211.36,211.33,1.54625739]
[1756946234542,29.58625739,211.4,211.33,1.54625739]
[1756946234741,10.73711856,211.39,211.33,1.54625739]
[1756946234941,4.257,211.34,211.33,1.54625739]
[1756946235540,11.497,211.34,211.32,1.54625739]
[1756946235746,4.2574,211.33,211.32,1.54625739]
[1756946237348,4.2574,211.33,211.32,6.15625739]
[1756946239746,4.29279912,211.35,211.33,4.61]
[1756946239953,4.29279912,211.35,211.34,1.54625739]
[1756946241946,0.03599912,211.35,211.34,6.15625739]
[1756946242150,7.24,211.41,211.34,6.15625739]
[1756946242448,4.256,211.39,211.38,1.54625739]
[1756946245552,4.256,211.39,211.36,7.06192641]
[1756946245952,4.256,211.39,211.37,4.61]
[1756946246453,7.24,211.41,211.37,4.61]
[1756946246654,4.2556,211.42,211.37,4.61]
[1756946246853,4.2556,211.42,211.36,2.45192641]
[1756946246854,4.2556,211.42,211.39,2.41615631]
[1756946247050,4.255,211.44,211.39,2.41615631]
[1756946247451,7.24,211.53,211.43,4.61]
[1756946247651,37.1,211.53,211.43,4.61]
[1756946247952,11.4945,211.47,211.46,0.03400257]
[1756946250953,4.2545,211.47,211.46,0.03400257]
[1756946251259,11.4945,211.47,211.46,0.03400257]
[1756946265579,7.78,211.46,211.37,2.41615631]
[1756946266175,4.2551,211.44,211.38,4.65]
[1756946266371,7.78,211.46,211.38,4.65]
[1756946266882,4.2553,211.43,211.38,4.65]
[1756946267073,4.2553,211.43,211.37,2.41615631]
[1756946267672,4.2553,211.43,211.38,4.65]
[1756946267877,4.2555,211.42,211.38,4.65]
[1756946268077,4.2555,211.42,211.37,2.41615631]
[1756946268584,4.2557,211.41,211.37,2.41615631]
[1756946268780,4.2557,211.41,211.38,4.65]
[1756946268981,7.78,211.47,211.37,2.41615631]
[1756946270679,7.78,211.43,211.4,0.03280766]
[1756946270986,0.03586395,211.44,211.4,0.03280766]
[1756946271186,7.78,211.43,211.4,0.03280766]
[1756946271382,0.03586395,211.44,211.4,0.03280766]
[1756946271884,4.2557,211.41,211.4,0.03280766]
[1756946272785,12.0357,211.41,211.4,0.03280766]
[1756946275385,7.78,211.38,211.32,7.09615631]
[1756946275590,7.78,211.38,211.29,2.41615631]
[1756946276588,7.81225614,211.36,211.29,2.41615631]
[1756946277886,4.2573,211.33,211.29,2.41615631]
[1756946278090,4.2573,211.33,211.3,4.68]
[1756946279084,7.81225614,211.36,211.29,2.41615631]
[1756946279085,12.0377,211.31,211.29,2.41615631]
[1756946279790,4.2577,211.31,211.29,7.09615631]
[1756946280185,4.2577,211.31,211.29,2.41615631]
[1756946280391,7.78,211.3,211.29,2.41615631]
[1756946280687,4.2577,211.31,211.29,2.41615631]
[1756946280888,4.2577,211.31,211.29,7.09615631]
[1756946281089,4.2577,211.31,211.25,3.93207198]
[1756946281290,12.038,211.3,211.27,7.09615631]
[1756946281490,7.78,211.31,211.27,2.41615631]
[1756946281789,0.03041658,211.32,211.27,2.41615631]
[1756946281989,7.78,211.31,211.27,2.41615631]
[1756946282290,7.78,211.28,211.24,7.09615631]
[1756946282691,7.78,211.31,211.24,7.09615631]
[1756946282888,4.2585,211.27,211.22,3.93207198]
[1756946283189,7.78,211.26,211.23,4.68]